[Event "Titled Tuesday Blitz September 14 2021"]
[White "Grischuk, Alexander"]
[Black "Demchenko, Anton"]
[WhiteFideId "4126025"]
[BlackFideId "4160258"]
[WhiteElo "2757"]
[BlackElo "2583"]
[Result "0-1"]
[Round "07"]
[TimeControl "180+1"]
[Date "2021.09.15"]
[WhiteClock "0:00:01"]
[BlackClock "0:00:15"]

1. e4 {[%clk 0:03:00]}  e5 {[%clk 0:02:59]} 2. Nf3 {[%clk 0:03:00]}  Nc6 {[%clk 0:02:59]} 3. Bb5 {[%clk 0:02:58]}  a6 {[%clk 0:03:00]} 4. Ba4 {[%clk 0:02:58]}  Nge7 {[%clk 0:03:00]} 5. O-O {[%clk 0:02:46]}  Ng6 {[%clk 0:02:59]} 6. c3 {[%clk 0:02:42]}  d5 {[%clk 0:02:59]} 7. d3 {[%clk 0:02:36]}  Be7 {[%clk 0:02:51]} 8. Re1 {[%clk 0:02:31]}  O-O {[%clk 0:02:47]} 9. Nbd2 {[%clk 0:02:30]}  Be6 {[%clk 0:02:26]} 10. Nf1 {[%clk 0:02:26]}  b5 {[%clk 0:02:19]} 11. Bc2 {[%clk 0:02:25]}  Qd7 {[%clk 0:02:16]} 12. Ng3 {[%clk 0:02:13]}  Rad8 {[%clk 0:02:14]} 13. Be3 {[%clk 0:01:58]}  f6 {[%clk 0:01:53]} 14. a4 {[%clk 0:01:50]}  Kh8 {[%clk 0:01:39]} 15. h3 {[%clk 0:01:37]}  d4 {[%clk 0:01:34]} 16. Bd2 {[%clk 0:01:15]}  dxc3 {[%clk 0:01:27]} 17. bxc3 {[%clk 0:01:16]}  b4 {[%clk 0:01:18]} 18. Nf5 {[%clk 0:00:45]}  bxc3 {[%clk 0:01:12]} 19. Bxc3 {[%clk 0:00:46]}  Nf4 {[%clk 0:01:07]} 20. d4 {[%clk 0:00:24]}  Bxf5 {[%clk 0:00:42]} 21. exf5 {[%clk 0:00:25]}  Bb4 {[%clk 0:00:42]} 22. Bxb4 {[%clk 0:00:15]}  Nxb4 {[%clk 0:00:43]} 23. dxe5 {[%clk 0:00:02]}  Qc6 {[%clk 0:00:43]} 24. Be4 {[%clk 0:00:02]}  Rxd1 {[%clk 0:00:39]} 25. Bxc6 {[%clk 0:00:02]}  Rxa1 {[%clk 0:00:39]} 26. Rxa1 {[%clk 0:00:03]}  Nxc6 {[%clk 0:00:40]} 27. exf6 {[%clk 0:00:03]}  Rxf6 {[%clk 0:00:37]} 28. g3 {[%clk 0:00:03]}  Ne2+ {[%clk 0:00:30]} 29. Kg2 {[%clk 0:00:02]}  h6 {[%clk 0:00:23]} 30. g4 {[%clk 0:00:02]}  g6 {[%clk 0:00:18]} 31. fxg6 {[%clk 0:00:02]}  Nf4+ {[%clk 0:00:18]} 32. Kg3 {[%clk 0:00:02]}  Nxg6 {[%clk 0:00:19]} 33. Rd1 {[%clk 0:00:01]}  Rf7 {[%clk 0:00:17]} 34. Ng1 {[%clk 0:00:01]}  Nf4 {[%clk 0:00:15]} 0-1


[Site "https://www.chess.com"]

[Event "Titled Tuesday Blitz September 14 2021"]
[White "Holt, Conrad"]
[Black "Mirzoev, Azer"]
[WhiteFideId "2034387"]
[BlackFideId "13400304"]
[WhiteElo "2586"]
[BlackElo "2525"]
[Result "0-1"]
[Round "07"]
[TimeControl "180+1"]
[Date "2021.09.15"]
[WhiteClock "0:00:01"]
[BlackClock "0:00:15"]

1. d4 {[%clk 0:03:00]}  d5 {[%clk 0:03:00]} 2. c4 {[%clk 0:03:00]}  e6 {[%clk 0:02:59]} 3. Nc3 {[%clk 0:03:00]}  Be7 {[%clk 0:02:58]} 4. cxd5 {[%clk 0:03:00]}  exd5 {[%clk 0:02:58]} 5. Bf4 {[%clk 0:03:01]}  c6 {[%clk 0:02:58]} 6. e3 {[%clk 0:03:01]}  Nf6 {[%clk 0:02:57]} 7. Bd3 {[%clk 0:03:01]}  Bg4 {[%clk 0:02:57]} 8. Qb3 {[%clk 0:02:59]}  Qb6 {[%clk 0:02:57]} 9. Qc2 {[%clk 0:02:59]}  Bh5 {[%clk 0:02:56]} 10. Nf3 {[%clk 0:02:55]}  Bg6 {[%clk 0:02:56]} 11. Bxg6 {[%clk 0:02:51]}  hxg6 {[%clk 0:02:56]} 12. O-O-O {[%clk 0:02:45]}  Nbd7 {[%clk 0:02:52]} 13. h4 {[%clk 0:02:40]}  Qa5 {[%clk 0:02:52]} 14. Kb1 {[%clk 0:02:39]}  Bb4 {[%clk 0:02:49]} 15. Na4 {[%clk 0:02:30]}  Ne4 {[%clk 0:02:43]} 16. Ng5 {[%clk 0:02:28]}  Nxg5 {[%clk 0:02:11]} 17. hxg5 {[%clk 0:02:28]}  O-O-O {[%clk 0:02:11]} 18. a3 {[%clk 0:02:20]}  Be7 {[%clk 0:02:10]} 19. Nc3 {[%clk 0:01:58]}  Nb6 {[%clk 0:02:08]} 20. Qe2 {[%clk 0:01:50]}  Rxh1 {[%clk 0:02:04]} 21. Qg4+ {[%clk 0:01:44]}  Nd7 {[%clk 0:02:02]} 22. Rxh1 {[%clk 0:01:43]}  Bxa3 {[%clk 0:01:59]} 23. Kc2 {[%clk 0:01:22]}  Bb4 {[%clk 0:01:57]} 24. Ne2 {[%clk 0:01:05]}  Qa4+ {[%clk 0:01:55]} 25. Kb1 {[%clk 0:01:05]}  Qb5 {[%clk 0:01:50]} 26. Rc1 {[%clk 0:00:56]}  Qd3+ {[%clk 0:01:12]} 27. Ka2 {[%clk 0:00:53]}  Qf5 {[%clk 0:01:09]} 28. Qh4 {[%clk 0:00:44]}  Nb6 {[%clk 0:01:03]} 29. Ng3 {[%clk 0:00:31]}  Qe6 {[%clk 0:00:52]} 30. Be5 {[%clk 0:00:28]}  Bf8 {[%clk 0:00:42]} 31. Qf4 {[%clk 0:00:20]}  Nc4 {[%clk 0:00:36]} 32. Bb8 {[%clk 0:00:21]}  Bd6 {[%clk 0:00:34]} 33. Bxd6 {[%clk 0:00:20]}  Nxd6 {[%clk 0:00:34]} 34. Rh1 {[%clk 0:00:13]}  Nf5 {[%clk 0:00:25]} 35. Nxf5 {[%clk 0:00:12]}  Qxf5 {[%clk 0:00:25]} 36. Qxf5+ {[%clk 0:00:11]}  gxf5 {[%clk 0:00:25]} 37. Rh7 {[%clk 0:00:12]}  Rg8 {[%clk 0:00:25]} 38. Kb3 {[%clk 0:00:12]}  Kd7 {[%clk 0:00:25]} 39. Kc3 {[%clk 0:00:10]}  a5 {[%clk 0:00:24]} 40. Kb3 {[%clk 0:00:09]}  b6 {[%clk 0:00:24]} 41. Ka4 {[%clk 0:00:09]}  Ke6 {[%clk 0:00:24]} 42. Rh1 {[%clk 0:00:05]}  g6 {[%clk 0:00:24]} 43. Rh7 {[%clk 0:00:05]}  Ra8 {[%clk 0:00:23]} 44. Kb3 {[%clk 0:00:04]}  c5 {[%clk 0:00:17]} 45. Ka4 {[%clk 0:00:04]}  cxd4 {[%clk 0:00:17]} 46. exd4 {[%clk 0:00:05]}  Rc8 {[%clk 0:00:17]} 47. b3 {[%clk 0:00:05]}  Rc2 {[%clk 0:00:17]} 48. Kb5 {[%clk 0:00:04]}  Rxf2 {[%clk 0:00:16]} 49. Kxb6 {[%clk 0:00:04]}  Rb2 {[%clk 0:00:16]} 50. Kxa5 {[%clk 0:00:04]}  Rxb3 {[%clk 0:00:16]} 51. Rh8 {[%clk 0:00:04]}  Rd3 {[%clk 0:00:15]} 52. Kb5 {[%clk 0:00:03]}  Rxd4 {[%clk 0:00:15]} 53. Re8+ {[%clk 0:00:02]}  Kd7 {[%clk 0:00:15]} 54. Rf8 {[%clk 0:00:01]}  Ke7 {[%clk 0:00:15]} 0-1


[Site "https://www.chess.com"]

[Event "Titled Tuesday Blitz September 14 2021"]
[White "Ibrahimli, Murad"]
[Black "Csonka, Balazs"]
[WhiteFideId "13410229"]
[BlackFideId "742910"]
[WhiteElo "2109"]
[BlackElo "2404"]
[Result "1-0"]
[Round "07"]
[TimeControl "180+1"]
[Date "2021.09.15"]
[WhiteClock "0:00:54"]
[BlackClock "0:00:01"]

1. e4 {[%clk 0:03:00]}  e5 {[%clk 0:02:58]} 2. Nf3 {[%clk 0:03:00]}  Nc6 {[%clk 0:02:58]} 3. Bb5 {[%clk 0:03:01]}  a6 {[%clk 0:02:58]} 4. Ba4 {[%clk 0:03:01]}  Bc5 {[%clk 0:02:58]} 5. c3 {[%clk 0:02:59]}  Nge7 {[%clk 0:02:58]} 6. O-O {[%clk 0:02:57]}  Ng6 {[%clk 0:02:56]} 7. d4 {[%clk 0:02:57]}  Ba7 {[%clk 0:02:56]} 8. d5 {[%clk 0:02:45]}  Nce7 {[%clk 0:02:46]} 9. d6 {[%clk 0:02:44]}  cxd6 {[%clk 0:02:45]} 10. Qxd6 {[%clk 0:02:45]}  O-O {[%clk 0:02:36]} 11. c4 {[%clk 0:02:44]}  b5 {[%clk 0:01:35]} 12. cxb5 {[%clk 0:02:43]}  axb5 {[%clk 0:01:36]} 13. Bxb5 {[%clk 0:02:43]}  Bb7 {[%clk 0:01:36]} 14. Nc3 {[%clk 0:02:42]}  f5 {[%clk 0:01:36]} 15. Bg5 {[%clk 0:02:06]}  fxe4 {[%clk 0:01:24]} 16. Nxe5 {[%clk 0:02:05]}  Nf5 {[%clk 0:00:41]} 17. Bc4+ {[%clk 0:01:51]}  Kh8 {[%clk 0:00:41]} 18. Qxg6 {[%clk 0:01:52]}  hxg6 {[%clk 0:00:39]} 19. Bxd8 {[%clk 0:01:52]}  Rfxd8 {[%clk 0:00:27]} 20. Nf7+ {[%clk 0:01:51]}  Kh7 {[%clk 0:00:27]} 21. Nxd8 {[%clk 0:01:52]}  Rxd8 {[%clk 0:00:28]} 22. Bd5 {[%clk 0:01:52]}  Ba6 {[%clk 0:00:26]} 23. Bxe4 {[%clk 0:01:51]}  Bxf1 {[%clk 0:00:23]} 24. Rxf1 {[%clk 0:01:49]}  Nd4 {[%clk 0:00:18]} 25. Bd3 {[%clk 0:01:47]}  Rb8 {[%clk 0:00:16]} 26. b3 {[%clk 0:01:45]}  Rc8 {[%clk 0:00:15]} 27. Nd5 {[%clk 0:01:46]}  Kh6 {[%clk 0:00:06]} 28. h3 {[%clk 0:01:42]}  d6 {[%clk 0:00:05]} 29. Re1 {[%clk 0:01:31]}  Rf8 {[%clk 0:00:04]} 30. Re7 {[%clk 0:01:10]}  Nc6 {[%clk 0:00:03]} 31. Re2 {[%clk 0:01:06]}  Ne5 {[%clk 0:00:02]} 32. Be4 {[%clk 0:01:03]}  Rc8 {[%clk 0:00:02]} 33. g3 {[%clk 0:01:03]}  Rc1+ {[%clk 0:00:02]} 34. Kg2 {[%clk 0:01:03]}  Ra1 {[%clk 0:00:02]} 35. f4 {[%clk 0:01:03]}  Nd7 {[%clk 0:00:02]} 36. h4 {[%clk 0:01:01]}  Nc5 {[%clk 0:00:01]} 37. b4 {[%clk 0:00:57]}  Na4 {[%clk 0:00:01]} 38. Bf3 {[%clk 0:00:54]} 1-0


[Site "https://www.chess.com"]

[Event "Titled Tuesday Blitz September 14 2021"]
[White "Jones, Gawain C B"]
[Black "Dobrov, Vladimir"]
[WhiteFideId "409561"]
[BlackFideId "4136594"]
[WhiteElo "2657"]
[BlackElo "2614"]
[Result "0-1"]
[Round "07"]
[TimeControl "180+1"]
[Date "2021.09.15"]
[WhiteClock "0:00:08"]
[BlackClock "0:00:13"]

1. Nf3 {[%clk 0:03:00]}  d5 {[%clk 0:02:59]} 2. g3 {[%clk 0:03:00]}  Nd7 {[%clk 0:02:59]} 3. c4 {[%clk 0:02:59]}  e6 {[%clk 0:02:39]} 4. cxd5 {[%clk 0:02:57]}  exd5 {[%clk 0:02:39]} 5. Nc3 {[%clk 0:02:56]}  Ngf6 {[%clk 0:02:39]} 6. Bg2 {[%clk 0:02:56]}  Be7 {[%clk 0:02:28]} 7. O-O {[%clk 0:02:56]}  O-O {[%clk 0:02:29]} 8. d3 {[%clk 0:02:57]}  c6 {[%clk 0:02:23]} 9. e4 {[%clk 0:02:54]}  dxe4 {[%clk 0:02:23]} 10. dxe4 {[%clk 0:02:55]}  Nc5 {[%clk 0:02:23]} 11. e5 {[%clk 0:02:55]}  Nfe4 {[%clk 0:02:04]} 12. Nxe4 {[%clk 0:02:44]}  Nxe4 {[%clk 0:01:58]} 13. Qe2 {[%clk 0:02:40]}  Nc5 {[%clk 0:01:55]} 14. Rd1 {[%clk 0:02:37]}  Qc7 {[%clk 0:01:43]} 15. Bf4 {[%clk 0:02:35]}  Ne6 {[%clk 0:01:41]} 16. Be3 {[%clk 0:02:35]}  b6 {[%clk 0:01:27]} 17. Nd4 {[%clk 0:02:27]}  Nxd4 {[%clk 0:01:26]} 18. Bxd4 {[%clk 0:02:28]}  Bb7 {[%clk 0:01:22]} 19. e6 {[%clk 0:02:25]}  f6 {[%clk 0:01:22]} 20. Be5 {[%clk 0:02:14]}  Qxe5 {[%clk 0:01:19]} 21. Qxe5 {[%clk 0:02:13]}  fxe5 {[%clk 0:01:20]} 22. Rd7 {[%clk 0:02:14]}  Bc5 {[%clk 0:01:20]} 23. Rxb7 {[%clk 0:02:14]}  Rxf2 {[%clk 0:01:19]} 24. Kh1 {[%clk 0:02:10]}  Rd8 {[%clk 0:00:54]} 25. Bxc6 {[%clk 0:01:57]}  Rdd2 {[%clk 0:00:53]} 26. Rb8+ {[%clk 0:01:57]}  Rf8 {[%clk 0:00:53]} 27. Rb7 {[%clk 0:00:50]}  Rff2 {[%clk 0:00:52]} 28. Rb8+ {[%clk 0:00:45]}  Rf8 {[%clk 0:00:52]} 29. Rxf8+ {[%clk 0:00:34]}  Kxf8 {[%clk 0:00:52]} 30. Rf1+ {[%clk 0:00:31]}  Ke7 {[%clk 0:00:49]} 31. Rf7+ {[%clk 0:00:22]}  Kxe6 {[%clk 0:00:48]} 32. Rxa7 {[%clk 0:00:15]}  Rxb2 {[%clk 0:00:30]} 33. Rxg7 {[%clk 0:00:14]}  Kd6 {[%clk 0:00:30]} 34. Be4 {[%clk 0:00:13]}  Re2 {[%clk 0:00:30]} 35. Bd3 {[%clk 0:00:10]}  Re1+ {[%clk 0:00:30]} 36. Kg2 {[%clk 0:00:10]}  e4 {[%clk 0:00:30]} 37. Bb5 {[%clk 0:00:07]}  Rb1 {[%clk 0:00:23]} 38. a4 {[%clk 0:00:07]}  Rb2+ {[%clk 0:00:20]} 39. Kh3 {[%clk 0:00:06]}  h5 {[%clk 0:00:20]} 40. Rg6+ {[%clk 0:00:05]}  Ke5 {[%clk 0:00:20]} 41. Rg5+ {[%clk 0:00:06]}  Kd4 {[%clk 0:00:21]} 42. Rxh5 {[%clk 0:00:06]}  e3 {[%clk 0:00:21]} 43. Rh8 {[%clk 0:00:05]}  Kc3 {[%clk 0:00:15]} 44. Re8 {[%clk 0:00:04]}  Bd4 {[%clk 0:00:16]} 45. Kg4 {[%clk 0:00:04]}  Rxh2 {[%clk 0:00:15]} 46. Kf3 {[%clk 0:00:04]}  Rf2+ {[%clk 0:00:15]} 47. Ke4 {[%clk 0:00:04]}  Bc5 {[%clk 0:00:15]} 48. Kd5 {[%clk 0:00:04]}  Kd2 {[%clk 0:00:15]} 49. g4 {[%clk 0:00:03]}  Bb4 {[%clk 0:00:11]} 50. Re4 {[%clk 0:00:03]}  Ba5 {[%clk 0:00:11]} 51. g5 {[%clk 0:00:03]}  Rg2 {[%clk 0:00:11]} 52. Re5 {[%clk 0:00:03]}  Rg4 {[%clk 0:00:08]} 53. Kc6 {[%clk 0:00:03]}  Rg3 {[%clk 0:00:04]} 54. Rd5+ {[%clk 0:00:03]}  Kc3 {[%clk 0:00:05]} 55. Re5 {[%clk 0:00:04]}  Kd4 {[%clk 0:00:05]} 56. Rd5+ {[%clk 0:00:04]}  Ke4 {[%clk 0:00:06]} 57. g6 {[%clk 0:00:04]}  Rxg6+ {[%clk 0:00:05]} 58. Rd6 {[%clk 0:00:04]}  Rg5 {[%clk 0:00:06]} 59. Bd3+ {[%clk 0:00:04]}  Kf4 {[%clk 0:00:05]} 60. Rd4+ {[%clk 0:00:04]}  Kf3 {[%clk 0:00:05]} 61. Be4+ {[%clk 0:00:03]}  Kf2 {[%clk 0:00:05]} 62. Bd3 {[%clk 0:00:03]}  Rc5+ {[%clk 0:00:05]} 63. Kb7 {[%clk 0:00:03]}  Rc3 {[%clk 0:00:06]} 64. Bb5 {[%clk 0:00:03]}  Rb3 {[%clk 0:00:06]} 65. Rf4+ {[%clk 0:00:02]}  Ke1 {[%clk 0:00:07]} 66. Re4 {[%clk 0:00:03]}  Rxb5 {[%clk 0:00:06]} 67. axb5 {[%clk 0:00:03]}  e2 {[%clk 0:00:07]} 68. Kc6 {[%clk 0:00:02]}  Kd2 {[%clk 0:00:07]} 69. Rd4+ {[%clk 0:00:03]}  Ke3 {[%clk 0:00:08]} 70. Rd8 {[%clk 0:00:02]}  e1=Q {[%clk 0:00:08]} 71. Re8+ {[%clk 0:00:03]}  Kf2 {[%clk 0:00:08]} 72. Rxe1 {[%clk 0:00:03]}  Kxe1 {[%clk 0:00:09]} 73. Kd5 {[%clk 0:00:04]}  Kd2 {[%clk 0:00:10]} 74. Kc4 {[%clk 0:00:05]}  Kc2 {[%clk 0:00:10]} 75. Kd4 {[%clk 0:00:06]}  Kb3 {[%clk 0:00:11]} 76. Kd3 {[%clk 0:00:06]}  Kb4 {[%clk 0:00:12]} 77. Kc2 {[%clk 0:00:07]}  Kxb5 {[%clk 0:00:12]} 78. Kc1 {[%clk 0:00:08]}  Kc4 {[%clk 0:00:13]} 0-1


[Site "https://www.chess.com"]

[Event "Titled Tuesday Blitz September 14 2021"]
[White "Kamsky, Gata"]
[Black "Hansen, Eric"]
[WhiteFideId "2000024"]
[BlackFideId "2606771"]
[WhiteElo "2603"]
[BlackElo "2568"]
[Result "1/2-1/2"]
[Round "07"]
[TimeControl "180+1"]
[Date "2021.09.15"]
[WhiteClock "0:02:40"]
[BlackClock "0:02:16"]

1. d4 {[%clk 0:03:00]}  Nf6 {[%clk 0:02:40]} 2. Nf3 {[%clk 0:02:59]}  g6 {[%clk 0:02:40]} 3. Bg5 {[%clk 0:02:58]}  Bg7 {[%clk 0:02:39]} 4. c3 {[%clk 0:02:57]}  d6 {[%clk 0:02:33]} 5. Nbd2 {[%clk 0:02:57]}  O-O {[%clk 0:02:33]} 6. e4 {[%clk 0:02:55]}  Qe8 {[%clk 0:02:31]} 7. Bd3 {[%clk 0:02:54]}  e5 {[%clk 0:02:30]} 8. O-O {[%clk 0:02:54]}  Nc6 {[%clk 0:02:28]} 9. Re1 {[%clk 0:02:53]}  Nh5 {[%clk 0:02:25]} 10. dxe5 {[%clk 0:02:45]}  Nxe5 {[%clk 0:02:18]} 11. Nxe5 {[%clk 0:02:44]}  Qxe5 {[%clk 0:02:16]} 12. Nf3 {[%clk 0:02:40]} 1/2-1/2


[Site "https://www.chess.com"]

[Event "Titled Tuesday Blitz September 14 2021"]
[White "Keymer, Vincent"]
[Black "Stoyanov, Tsvetan"]
[WhiteFideId "12940690"]
[BlackFideId "2917173"]
[WhiteElo "2524"]
[BlackElo "2191"]
[Result "1-0"]
[Round "07"]
[TimeControl "180+1"]
[Date "2021.09.15"]
[WhiteClock "0:00:53"]
[BlackClock "0:00:57"]

1. Nf3 {[%clk 0:03:00]}  Nf6 {[%clk 0:03:00]} 2. c4 {[%clk 0:03:00]}  e6 {[%clk 0:03:00]} 3. Nc3 {[%clk 0:03:01]}  d5 {[%clk 0:03:00]} 4. e3 {[%clk 0:03:01]}  c5 {[%clk 0:02:58]} 5. cxd5 {[%clk 0:03:01]}  exd5 {[%clk 0:02:56]} 6. d4 {[%clk 0:03:01]}  Nc6 {[%clk 0:02:56]} 7. Bb5 {[%clk 0:03:00]}  Bg4 {[%clk 0:02:50]} 8. Bxc6+ {[%clk 0:02:34]}  bxc6 {[%clk 0:02:49]} 9. Qa4 {[%clk 0:02:34]}  Bd7 {[%clk 0:02:43]} 10. O-O {[%clk 0:02:32]}  Bd6 {[%clk 0:02:39]} 11. dxc5 {[%clk 0:02:32]}  Bxc5 {[%clk 0:02:38]} 12. b3 {[%clk 0:02:32]}  O-O {[%clk 0:02:36]} 13. Ba3 {[%clk 0:02:31]}  Qb6 {[%clk 0:02:17]} 14. Bxc5 {[%clk 0:02:24]}  Qxc5 {[%clk 0:02:16]} 15. Qd4 {[%clk 0:02:17]}  Qd6 {[%clk 0:02:11]} 16. Na4 {[%clk 0:02:15]}  Ne4 {[%clk 0:02:09]} 17. Rac1 {[%clk 0:02:12]}  Qa3 {[%clk 0:01:51]} 18. Ne5 {[%clk 0:02:03]}  Rfd8 {[%clk 0:01:43]} 19. f3 {[%clk 0:01:19]}  Nf6 {[%clk 0:01:42]} 20. Nc5 {[%clk 0:01:09]}  Be8 {[%clk 0:01:35]} 21. Qa4 {[%clk 0:01:04]}  Qb2 {[%clk 0:01:27]} 22. Ned3 {[%clk 0:00:56]}  Qd2 {[%clk 0:01:27]} 23. Qd4 {[%clk 0:00:56]}  Qxa2 {[%clk 0:01:04]} 24. Ra1 {[%clk 0:00:53]}  Qc2 {[%clk 0:00:57]} 25. Rf2 {[%clk 0:00:53]} 1-0


[Site "https://www.chess.com"]

[Event "Titled Tuesday Blitz September 14 2021"]
[White "Maghsoodloo, Parham"]
[Black "deribas12345"]
[WhiteFideId "12539929"]
[WhiteElo "2601"]
[BlackElo "2611"]
[Result "1-0"]
[Round "07"]
[TimeControl "180+1"]
[Date "2021.09.15"]
[WhiteClock "0:01:10"]
[BlackClock "0:00:17"]

1. e4 {[%clk 0:02:36]}  e6 {[%clk 0:02:59]} 2. d4 {[%clk 0:02:31]}  d5 {[%clk 0:02:59]} 3. Nc3 {[%clk 0:02:31]}  Nf6 {[%clk 0:02:59]} 4. e5 {[%clk 0:02:31]}  Ne4 {[%clk 0:02:58]} 5. Nce2 {[%clk 0:02:30]}  f6 {[%clk 0:02:58]} 6. f3 {[%clk 0:02:29]}  Ng5 {[%clk 0:02:56]} 7. h4 {[%clk 0:02:27]}  Nf7 {[%clk 0:02:55]} 8. f4 {[%clk 0:02:25]}  c5 {[%clk 0:02:54]} 9. c3 {[%clk 0:02:22]}  Nc6 {[%clk 0:02:54]} 10. Nf3 {[%clk 0:02:22]}  Be7 {[%clk 0:02:46]} 11. g4 {[%clk 0:02:11]}  fxe5 {[%clk 0:02:38]} 12. dxe5 {[%clk 0:02:05]}  Qb6 {[%clk 0:02:31]} 13. g5 {[%clk 0:02:01]}  Bd7 {[%clk 0:02:24]} 14. Bh3 {[%clk 0:01:59]}  O-O-O {[%clk 0:02:24]} 15. Qc2 {[%clk 0:01:57]}  g6 {[%clk 0:02:17]} 16. Be3 {[%clk 0:01:55]}  d4 {[%clk 0:02:10]} 17. cxd4 {[%clk 0:01:53]}  Nb4 {[%clk 0:02:10]} 18. Qb3 {[%clk 0:01:48]}  Kb8 {[%clk 0:01:49]} 19. dxc5 {[%clk 0:01:27]}  Bxc5 {[%clk 0:01:49]} 20. Bxc5 {[%clk 0:01:27]}  Qxc5 {[%clk 0:01:50]} 21. Rc1 {[%clk 0:01:27]}  Qb5 {[%clk 0:01:26]} 22. Rc3 {[%clk 0:01:18]}  Bc6 {[%clk 0:01:14]} 23. Ned4 {[%clk 0:01:17]}  Qa5 {[%clk 0:00:37]} 24. Nxc6+ {[%clk 0:01:12]}  Nxc6 {[%clk 0:00:36]} 25. O-O {[%clk 0:01:12]}  Nd4 {[%clk 0:00:24]} 26. Nxd4 {[%clk 0:01:11]}  Rxd4 {[%clk 0:00:25]} 27. Bxe6 {[%clk 0:01:11]}  Nd8 {[%clk 0:00:17]} 28. Rc8# {[%clk 0:01:10]} 1-0


[Site "https://www.chess.com"]

[Event "Titled Tuesday Blitz September 14 2021"]
[White "Makarian, Rudik"]
[Black "Rozman, Levy"]
[WhiteFideId "44105681"]
[BlackFideId "2039877"]
[WhiteElo "2411"]
[BlackElo "2376"]
[Result "1-0"]
[Round "07"]
[TimeControl "180+1"]
[Date "2021.09.15"]
[WhiteClock "0:01:14"]
[BlackClock "0:00:24"]

1. d4 {[%clk 0:03:00]}  g6 {[%clk 0:03:00]} 2. c4 {[%clk 0:03:01]}  Bg7 {[%clk 0:03:00]} 3. Nc3 {[%clk 0:03:01]}  c5 {[%clk 0:03:00]} 4. d5 {[%clk 0:03:02]}  Bxc3+ {[%clk 0:03:00]} 5. bxc3 {[%clk 0:03:03]}  f5 {[%clk 0:03:00]} 6. h4 {[%clk 0:03:04]}  Nf6 {[%clk 0:03:01]} 7. h5 {[%clk 0:03:04]}  Rg8 {[%clk 0:03:01]} 8. hxg6 {[%clk 0:03:04]}  hxg6 {[%clk 0:03:02]} 9. Qa4 {[%clk 0:03:05]}  Ne4 {[%clk 0:02:47]} 10. Nf3 {[%clk 0:03:01]}  Qb6 {[%clk 0:02:42]} 11. Rh7 {[%clk 0:02:57]}  Qf6 {[%clk 0:02:28]} 12. Qc2 {[%clk 0:02:46]}  Rh8 {[%clk 0:02:25]} 13. Rxh8+ {[%clk 0:02:37]}  Qxh8 {[%clk 0:02:25]} 14. Ng5 {[%clk 0:02:38]}  Qxc3+ {[%clk 0:01:39]} 15. Qxc3 {[%clk 0:02:38]}  Nxc3 {[%clk 0:01:40]} 16. f3 {[%clk 0:02:35]}  Na6 {[%clk 0:01:35]} 17. a4 {[%clk 0:02:17]}  Nb4 {[%clk 0:01:30]} 18. Kd2 {[%clk 0:02:16]}  Nca2 {[%clk 0:01:23]} 19. Bb2 {[%clk 0:02:15]}  d6 {[%clk 0:01:18]} 20. e4 {[%clk 0:02:16]}  Bd7 {[%clk 0:01:17]} 21. Be2 {[%clk 0:02:14]}  Bxa4 {[%clk 0:01:15]} 22. Rh1 {[%clk 0:02:06]}  Kd7 {[%clk 0:01:04]} 23. Rh7 {[%clk 0:02:05]}  Na6 {[%clk 0:00:56]} 24. Bf6 {[%clk 0:01:54]}  Re8 {[%clk 0:00:55]} 25. exf5 {[%clk 0:01:55]}  gxf5 {[%clk 0:00:54]} 26. Bd3 {[%clk 0:01:55]}  Kd8 {[%clk 0:00:40]} 27. Ne6+ {[%clk 0:01:44]}  Kc8 {[%clk 0:00:40]} 28. Bxe7 {[%clk 0:01:41]}  Rg8 {[%clk 0:00:33]} 29. Bxd6 {[%clk 0:01:23]}  Rxg2+ {[%clk 0:00:30]} 30. Ke3 {[%clk 0:01:23]}  Bc2 {[%clk 0:00:24]} 31. Rh8+ {[%clk 0:01:14]}  Kd7 {[%clk 0:00:24]} 32. Rd8# {[%clk 0:01:14]} 1-0


[Site "https://www.chess.com"]

[Event "Titled Tuesday Blitz September 14 2021"]
[White "Perez Molina, Robinson"]
[Black "Rodriguez Hernandez, Luis Daniel"]
[WhiteFideId "3403882"]
[BlackFideId "3506770"]
[WhiteElo "2252"]
[BlackElo "2133"]
[Result "1-0"]
[Round "07"]
[TimeControl "180+1"]
[Date "2021.09.15"]
[WhiteClock "0:00:24"]
[BlackClock "0:00:04"]

1. Nf3 {[%clk 0:02:56]}  Nf6 {[%clk 0:02:59]} 2. c4 {[%clk 0:02:54]}  g6 {[%clk 0:03:00]} 3. Nc3 {[%clk 0:02:53]}  Bg7 {[%clk 0:03:01]} 4. e4 {[%clk 0:02:53]}  O-O {[%clk 0:03:02]} 5. d4 {[%clk 0:02:54]}  d6 {[%clk 0:03:03]} 6. h3 {[%clk 0:02:54]}  Na6 {[%clk 0:03:03]} 7. Bg5 {[%clk 0:02:53]}  h6 {[%clk 0:03:02]} 8. Be3 {[%clk 0:02:53]}  c6 {[%clk 0:03:02]} 9. Be2 {[%clk 0:02:51]}  Nc7 {[%clk 0:03:02]} 10. Qd2 {[%clk 0:02:40]}  Kh7 {[%clk 0:03:02]} 11. g4 {[%clk 0:02:35]}  b5 {[%clk 0:02:57]} 12. g5 {[%clk 0:02:16]}  b4 {[%clk 0:02:57]} 13. gxf6 {[%clk 0:02:14]}  bxc3 {[%clk 0:02:57]} 14. bxc3 {[%clk 0:02:14]}  exf6 {[%clk 0:02:57]} 15. h4 {[%clk 0:02:00]}  h5 {[%clk 0:02:57]} 16. Bd3 {[%clk 0:01:55]}  Re8 {[%clk 0:02:54]} 17. Rg1 {[%clk 0:01:48]}  d5 {[%clk 0:02:45]} 18. exd5 {[%clk 0:01:41]}  cxd5 {[%clk 0:02:46]} 19. c5 {[%clk 0:01:41]}  Ba6 {[%clk 0:02:33]} 20. Bxa6 {[%clk 0:01:20]}  Nxa6 {[%clk 0:02:34]} 21. Qd3 {[%clk 0:01:20]}  Qa5 {[%clk 0:02:33]} 22. Kf1 {[%clk 0:01:01]}  Re4 {[%clk 0:02:28]} 23. Rh1 {[%clk 0:00:56]}  Rg4 {[%clk 0:02:15]} 24. Nd2 {[%clk 0:00:54]}  Re8 {[%clk 0:01:00]} 25. Re1 {[%clk 0:00:50]}  Qxa2 {[%clk 0:00:36]} 26. f3 {[%clk 0:00:49]}  Rxe3 {[%clk 0:00:16]} 27. Rxe3 {[%clk 0:00:45]}  Rf4 {[%clk 0:00:16]} 28. Re2 {[%clk 0:00:37]}  Bh6 {[%clk 0:00:16]} 29. Kg2 {[%clk 0:00:36]}  Rf5 {[%clk 0:00:15]} 30. Nf1 {[%clk 0:00:29]}  Qa5 {[%clk 0:00:14]} 31. Ng3 {[%clk 0:00:29]}  Rf4 {[%clk 0:00:15]} 32. Nxh5 {[%clk 0:00:28]}  Rf5 {[%clk 0:00:14]} 33. Ng3 {[%clk 0:00:28]}  Rf4 {[%clk 0:00:14]} 34. h5 {[%clk 0:00:28]}  Kg7 {[%clk 0:00:03]} 35. hxg6 {[%clk 0:00:27]}  fxg6 {[%clk 0:00:04]} 36. Re7+ {[%clk 0:00:27]}  Kf8 {[%clk 0:00:04]} 37. Rxa7 {[%clk 0:00:24]} 1-0


[Site "https://www.chess.com"]